bitfinex/quotes_BTCUSD_20250711
["timestamp","ask_amount","ask_price","bid_price","bid_amount"]
[1752214588411,0.62057691,117950.0,117920.0,0.5012474]
[1752214588755,0.001,117930.0,117920.0,0.5651474]
[1752214589257,0.001,117930.0,117920.0,0.5012474]
[1752214589468,0.00086052,117930.0,117920.0,0.5012474]
[1752214589863,0.00086052,117930.0,117920.0,0.1612474]
[1752214591417,0.00186052,117930.0,117920.0,0.0256474]
[1752214591573,0.07774085,117920.0,117890.0,0.0636]
[1752214591910,0.47144698,117900.0,117880.0,0.13556]
[1752214592109,0.13556,117910.0,117880.0,0.2013808]
[1752214592308,0.77247776,117920.0,117880.0,0.22039808]
[1752214592514,0.77247776,117920.0,117880.0,0.08483808]
[1752214592821,0.77247776,117920.0,117890.0,0.16766]
[1752214593153,0.30103078,117920.0,117890.0,0.16766]
[1752214593345,0.18330085,117920.0,117890.0,0.19926]
[1752214593545,0.19896,117930.0,117900.0,0.0637]
[1752214593785,0.28438993,117930.0,117900.0,0.19926]
[1752214593936,0.0652,117940.0,117900.0,0.34745892]
[1752214594107,0.28618993,117940.0,117910.0,0.0306]
[1752214594316,0.22098993,117940.0,117910.0,0.0614]
[1752214594525,0.001,117930.0,117910.0,0.0614]
[1752214594936,0.22198993,117940.0,117910.0,0.06352026]
[1752214595132,0.22198993,117940.0,117910.0,0.09824818]
[1752214595578,0.13656,117940.0,117910.0,0.09824818]
[1752214595989,0.13652,117940.0,117910.0,0.09824818]
[1752214596186,0.5691175,117950.0,117910.0,0.09824818]
[1752214596391,0.15006085,117940.0,117910.0,0.52467811]
[1752214596606,0.01454085,117940.0,117910.0,0.52255785]
[1752214598520,0.12528799,117960.0,117930.0,0.84244698]
[1752214598521,0.025431,117960.0,117930.0,0.84244698]
[1752214598737,0.0634,118000.0,117950.0,0.84404698]
[1752214598940,0.088823,118000.0,117960.0,0.42046993]
[1752214599158,0.025423,118000.0,117970.0,0.34211918]
[1752214599371,0.025423,118000.0,117980.0,0.27104]
[1752214599585,0.53484698,118020.0,117980.0,0.27104]
[1752214599760,0.62027691,118020.0,117980.0,0.27104]
[1752214600147,0.49686498,118030.0,117980.0,0.41736993]
[1752214600350,0.002,118000.0,117990.0,0.00211882]
[1752214600574,0.78231491,118030.0,117990.0,0.00211882]
[1752214600736,0.6434808,118030.0,118000.0,0.271]
[1752214601109,0.005,118020.0,118000.0,0.271]
[1752214601293,0.002,118020.0,118000.0,0.271]
[1752214601499,0.08542993,118030.0,118000.0,0.30572792]
[1752214601718,0.55787691,118030.0,118000.0,0.30572792]
[1752214602212,0.01454085,118020.0,118000.0,0.30572792]
[1752214603482,0.01554085,118020.0,118000.0,0.30572792]
[1752214603827,0.01754085,118020.0,118000.0,0.30572792]
[1752214604146,0.48898783,118020.0,118000.0,0.30572792]
[1752214604512,0.47144698,118010.0,118000.0,0.03472792]
[1752214604733,0.47144698,118010.0,117990.0,0.13544]
[1752214605739,0.70785776,118020.0,117990.0,0.13544]
[1752214605946,0.001,118010.0,117990.0,0.13544]
[1752214606532,0.001,118010.0,117980.0,0.0303]
[1752214606732,0.001,118010.0,117990.0,0.4754]
[1752214606936,0.001,118010.0,117990.0,0.53451299]
[1752214607820,0.47244698,118010.0,117990.0,0.53451299]
[1752214608242,0.47244698,118010.0,117990.0,0.39911299]
[1752214608446,0.47144698,118000.0,117990.0,0.39911299]
[1752214608664,0.76787776,118000.0,117970.0,0.13536]
[1752214609011,0.47144698,117980.0,117950.0,0.13536]
[1752214609236,0.47144698,117980.0,117950.0,0.22078993]
[1752214609472,0.13536,117990.0,117960.0,0.15014929]
[1752214609727,0.60680698,118000.0,117960.0,0.15014929]
[1752214609946,0.60680698,118000.0,117960.0,0.30052422]
[1752214610191,0.60780698,118000.0,117960.0,0.29840486]
[1752214610633,0.60780698,118000.0,117960.0,0.16304486]
[1752214610821,0.60780698,118000.0,117960.0,0.29840486]
[1752214611108,0.60680698,118000.0,117960.0,0.29840486]
[1752214611586,0.13536,118000.0,117960.0,0.29840486]
[1752214611835,0.60680698,118000.0,117970.0,0.00211918]
[1752214612084,0.48598783,118010.0,117970.0,0.00211918]
[1752214612299,0.14990085,118000.0,117970.0,0.49124911]
[1752214612508,0.01454085,118000.0,117970.0,0.57455986]
[1752214612680,0.54668783,118020.0,117970.0,0.57455986]
[1752214612942,0.14990085,118010.0,117970.0,0.54305986]
[1752214613172,0.14990085,118010.0,117980.0,0.0302]
[1752214613578,0.14990085,118010.0,117980.0,0.032319]
[1752214613816,0.14990085,118010.0,117980.0,0.04768345]
[1752214615405,0.01454085,118010.0,117980.0,0.13311338]
[1752214615543,0.24616693,118020.0,117980.0,0.30053338]
[1752214615743,0.24616693,118020.0,117980.0,0.29841438]
[1752214616179,0.71761391,118020.0,117980.0,0.29841438]
[1752214616551,0.71761391,118020.0,117990.0,0.0629]
[1752214616754,0.24616693,118020.0,117990.0,0.09280144]
[1752214616951,0.13532,118020.0,117990.0,0.48775019]
[1752214617157,0.13632,118020.0,118000.0,0.0312]
[1752214617352,0.13532,118020.0,118000.0,0.0312]
[1752214617683,0.13632,118020.0,118000.0,0.0312]
[1752214617880,0.13632,118020.0,118000.0,0.11530178]
[1752214618247,0.13532,118020.0,118000.0,0.11530178]
[1752214618761,0.13732,118020.0,118000.0,0.11530178]
[1752214618962,0.13732,118020.0,118000.0,0.11318314]
[1752214619166,0.002,118020.0,118000.0,0.11530178]
[1752214619386,0.13828,118020.0,118000.0,0.11530178]
[1752214619632,0.003,118020.0,118000.0,0.11318314]
[1752214619832,0.003,118020.0,118000.0,0.11530178]
[1752214620051,0.003,118020.0,118010.0,0.0619]
[1752214620256,0.003,118020.0,118010.0,0.4211098]
[1752214621061,0.001,118020.0,118010.0,0.4211098]
[1752214621427,0.003,118020.0,118010.0,0.4211098]
[1752214621758,0.47444698,118020.0,118010.0,0.0192098]
[1752214621957,0.51898783,118020.0,117980.0,0.0631]
[1752214622161,0.47144698,117990.0,117980.0,0.48852993]
[1752214622727,0.47144698,118000.0,117990.0,0.34]
[1752214622923,0.48598783,118010.0,117990.0,0.3725]
[1752214623127,0.01454085,118010.0,117990.0,0.3725]
[1752214623346,0.48598783,118010.0,117990.0,0.42160299]
[1752214623583,0.48598783,118010.0,117990.0,0.55684299]
[1752214623784,0.48598783,118010.0,117990.0,0.38910299]
[1752214623981,0.48598783,118010.0,117990.0,0.04910299]
[1752214624389,0.47144698,118000.0,117990.0,0.04910299]
[1752214624547,0.47144698,118000.0,117990.0,0.05010299]
[1752214624759,0.01454085,118010.0,117990.0,0.05010299]
[1752214625002,0.47144698,118000.0,117990.0,0.001]
[1752214625162,0.47144698,118000.0,117980.0,0.08542993]
[1752214625787,0.48598783,118010.0,117980.0,0.14962993]
[1752214625988,0.13524,118010.0,117980.0,0.14962993]
[1752214626335,0.13524,118010.0,117990.0,0.0317]
[1752214626559,0.13524,118010.0,117990.0,0.04767299]
[1752214626753,0.60668698,118010.0,117990.0,0.04767299]
[1752214626906,0.13524,118010.0,117990.0,0.04767299]
[1752214627070,0.13524,118010.0,117990.0,0.04667299]
[1752214627475,0.13524,118010.0,117990.0,0.01497299]
[1752214627919,0.13524,118010.0,117990.0,0.01597299]
[1752214628112,0.13524,118010.0,117990.0,0.04817299]
[1752214628315,0.63858698,118010.0,117990.0,0.01697299]
[1752214628529,0.47144698,118000.0,117990.0,0.01697299]
[1752214628743,0.60668698,118010.0,117990.0,0.002]
[1752214629329,0.53634698,118020.0,117990.0,0.002]
[1752214629535,0.1352,118020.0,117990.0,0.28522993]
[1752214629701,0.1352,118020.0,118000.0,0.00211864]
[1752214630402,0.57979718,118030.0,118000.0,0.00211864]
[1752214630602,0.1821502,118030.0,118000.0,0.42922806]
[1752214630909,0.47144698,118020.0,118000.0,0.4670858]
[1752214631112,0.62818018,118030.0,118000.0,0.4670858]
[1752214632055,0.65988018,118030.0,118000.0,0.6022858]
[1752214632260,0.65988018,118030.0,118000.0,0.4670858]
[1752214633388,0.47144698,118020.0,118000.0,0.4049858]
[1752214634366,0.47144698,118020.0,118000.0,0.4362858]
[1752214634634,0.2186332,118030.0,118000.0,0.46152354]
[1752214634635,0.69008018,118030.0,118000.0,0.46152354]
[1752214634839,0.47144698,118020.0,118000.0,0.46152354]
[1752214635435,0.47144698,118020.0,118000.0,0.43022354]
[1752214637299,0.53594698,118020.0,118000.0,0.43022354]
[1752214638547,0.53794698,118020.0,118000.0,0.43022354]
[1752214638701,0.53794698,118020.0,118000.0,0.4049858]
[1752214638907,0.62110783,118010.0,118000.0,0.0649858]
[1752214639066,0.65420783,118010.0,117990.0,0.47512]
[1752214640031,0.69010783,118010.0,117990.0,0.47512]
[1752214640249,0.50454698,118000.0,117990.0,0.34]
[1752214640397,0.53744698,118000.0,117990.0,0.34]
[1752214641910,0.50454698,118000.0,117990.0,0.34]
[1752214642118,0.50454698,118000.0,117990.0,0.387512]
[1752214642339,0.50454698,118000.0,117990.0,0.047512]
[1752214642659,0.50454698,118000.0,117970.0,0.53662]
[1752214642862,0.0331,118000.0,117970.0,0.62204993]
[1752214643427,0.0331,118000.0,117970.0,0.77301429]
[1752214643635,0.0361,118000.0,117970.0,0.77301429]
[1752214644015,0.67682583,118010.0,117970.0,0.77301429]
[1752214644188,0.70952583,118010.0,117990.0,0.34]
[1752214645439,0.23807885,118010.0,117990.0,0.34]
[1752214645644,0.70952583,118010.0,117990.0,0.34]
[1752214646064,0.17507885,118010.0,117990.0,0.34]
[1752214646779,0.13512,118010.0,117990.0,0.34]
[1752214646998,0.13512,118010.0,117990.0,0.35536445]
[1752214647401,0.16732,118010.0,117990.0,0.35536445]
[1752214648948,0.002,118010.0,118000.0,0.06997563]
[1752214649080,0.0002,118040.0,118000.0,0.96685254]
[1752214649282,0.0002,118040.0,118030.0,0.0618]
[1752214649486,0.0002,118040.0,118030.0,0.5791381]
[1752214649687,0.0002,118040.0,118030.0,0.66244993]
[1752214650524,0.0022,118040.0,118030.0,0.66244993]
[1752214650742,0.0002,118040.0,118030.0,1.15531378]
[1752214651120,0.0002,118040.0,118030.0,1.15631378]
[1752214651320,0.0012,118040.0,118030.0,1.15631378]
[1752214651755,0.0002,118040.0,118030.0,1.15631378]
[1752214652131,0.0002,118040.0,118030.0,1.15731378]
[1752214652335,0.0002,118040.0,118030.0,1.18296342]
[1752214652531,0.0002,118040.0,118030.0,0.71151644]
[1752214653741,0.0002,118040.0,118030.0,1.18296342]
[1752214654162,0.0002,118050.0,118040.0,0.4049]
[1752214654458,0.01,118060.0,118050.0,0.0649]
[1752214654658,0.01,118060.0,118050.0,0.42244767]
[1752214654860,0.01,118060.0,118050.0,1.23177691]
[1752214656393,0.01,118060.0,118050.0,0.76032993]
[1752214657028,0.00153901,118060.0,118050.0,1.23177691]
[1752214657278,0.00253901,118060.0,118050.0,1.24814136]
[1752214657450,0.0102,118070.0,118060.0,0.0645]
[1752214657610,0.0102,118070.0,118060.0,0.15204749]
[1752214657811,0.0102,118070.0,118060.0,0.14992993]
[1752214658628,0.0102,118070.0,118060.0,0.38790993]
[1752214658839,0.0102,118070.0,118060.0,0.45688993]
[1752214659236,0.00154089,118070.0,118060.0,0.45688993]
[1752214659438,0.00154089,118070.0,118060.0,0.79688993]
[1752214659652,0.0002,118090.0,118070.0,0.4063]
[1752214659863,0.0002,118090.0,118080.0,0.42542993]
[1752214660077,0.0002,118090.0,118080.0,0.60559986]
[1752214660481,0.0002,118090.0,118080.0,0.47067986]
[1752214660689,0.0002,118090.0,118080.0,0.60559986]
[1752214661111,0.0012,118090.0,118080.0,0.60559986]
[1752214661677,0.0012,118090.0,118080.0,0.47067986]
[1752214661876,0.0012,118090.0,118080.0,0.60555986]
[1752214662082,0.025595,118110.0,118090.0,0.34]
[1752214662320,0.0002,118110.0,118090.0,0.35416445]
[1752214662511,0.0002,118110.0,118100.0,0.00211685]
[1752214662884,0.0002,118110.0,118090.0,0.35416445]
[1752214663074,0.0002,118110.0,118100.0,0.13604]
[1752214663968,0.0002,118110.0,118090.0,0.01416445]
[1752214664201,0.0002,118110.0,118100.0,0.13596]
[1752214664423,0.0002,118110.0,118100.0,0.15951544]
[1752214664641,0.0318,118110.0,118100.0,0.02355544]
[1752214664894,0.53534698,118110.0,118090.0,0.01416445]
[1752214665092,0.47144698,118100.0,118080.0,0.04524993]
[1752214665317,0.47144698,118100.0,118090.0,0.13604]
[1752214665526,0.53534698,118110.0,118090.0,0.13604]
[1752214666334,0.47144698,118100.0,118080.0,0.13067986]
[1752214666536,0.47144698,118100.0,118090.0,0.13604]
[1752214666765,0.47144698,118100.0,118090.0,0.16271199]
[1752214666973,0.0649,118110.0,118090.0,0.16271199]
[1752214667185,0.0002,118110.0,118090.0,0.16482901]
[1752214667967,0.0002,118110.0,118090.0,0.16582901]
[1752214668920,0.0305,118110.0,118090.0,0.16371199]
[1752214671785,0.0002,118110.0,118090.0,0.233686]
[1752214672020,0.0002,118110.0,118100.0,0.08542993]
[1752214672131,0.0002,118110.0,118100.0,0.11310239]
[1752214672816,0.0629,118110.0,118100.0,0.02767246]
[1752214673153,0.0629,118110.0,118100.0,0.16391246]
[1752214673358,0.0639,118110.0,118100.0,0.16391246]
[1752214673896,0.0639,118110.0,118100.0,0.16387246]
[1752214675194,0.0639,118110.0,118100.0,0.02767246]
[1752214675370,0.0639,118110.0,118100.0,0.16383246]
[1752214675576,0.53534698,118110.0,118100.0,0.16383246]
[1752214675939,0.0637,118100.0,118060.0,0.38640436]
[1752214676155,0.0317,118090.0,118060.0,0.23639429]
[1752214676362,0.0628,118090.0,118070.0,0.13604]
[1752214676691,0.0628,118090.0,118060.0,0.08542993]
[1752214676916,0.53424698,118090.0,118070.0,0.13608]
[1752214677105,0.0628,118090.0,118070.0,0.15823099]
[1752214677404,0.088799,118100.0,118070.0,0.16034837]
[1752214677758,0.088799,118100.0,118070.0,0.19044837]
[1752214677982,0.088799,118100.0,118070.0,0.18833099]
[1752214678506,0.0636,118110.0,118080.0,0.0021172]
[1752214678737,0.088996,118110.0,118090.0,0.13612]
[1752214678872,0.088996,118110.0,118090.0,0.14994372]
[1752214679689,0.56044298,118110.0,118090.0,0.14994372]
[1752214679889,0.088996,118110.0,118090.0,0.14980814]
[1752214680213,0.025596,118110.0,118090.0,0.14980814]
[1752214680418,0.0002,118110.0,118090.0,0.14980814]
[1752214680651,0.0012,118110.0,118090.0,0.14980814]
[1752214680921,0.0012,118110.0,118100.0,0.13604]
[1752214681125,0.0002,118110.0,118100.0,0.15029287]
[1752214681906,0.0312,118110.0,118100.0,0.15029287]
[1752214682354,0.50364698,118110.0,118100.0,0.15029287]
[1752214683706,0.53694698,118110.0,118100.0,0.15029287]
[1752214684108,0.53694698,118110.0,118100.0,0.13604]
[1752214684410,0.50594698,118110.0,118090.0,0.00648865]
[1752214684630,0.53244698,118100.0,118090.0,0.14224865]
[1752214685424,0.53244698,118100.0,118090.0,0.00648865]
[1752214685646,0.53244698,118100.0,118090.0,0.14216865]
[1752214685842,0.061,118100.0,118090.0,0.14216865]
[1752214686185,0.53244698,118100.0,118090.0,0.14216865]
[1752214686334,0.0627,118090.0,118080.0,0.13564]
[1752214686742,0.0627,118090.0,118080.0,0.13592]
[1752214687842,0.55934498,118100.0,118080.0,0.13592]
[1752214688262,0.55934498,118100.0,118070.0,0.15815099]
[1752214688487,0.55934498,118100.0,118090.0,0.001]
[1752214688630,0.55934498,118100.0,118070.0,0.15815099]
[1752214688829,0.52724498,118100.0,118070.0,0.15815099]
[1752214689091,0.0317,118090.0,118080.0,0.002]
[1752214689329,0.0317,118090.0,118070.0,0.15815099]
[1752214689503,0.0317,118090.0,118070.0,0.16215099]
[1752214689753,0.0649,118090.0,118070.0,0.16215099]
[1752214690065,0.0649,118090.0,118070.0,0.02615099]
[1752214690265,0.50394698,118080.0,118070.0,0.02615099]
[1752214690470,0.53654698,118080.0,118070.0,0.006]
[1752214691073,0.63651776,118080.0,118070.0,0.006]
[1752214691285,0.77231776,118080.0,118070.0,0.004]
[1752214691488,0.79471607,118080.0,118070.0,0.004]
[1752214691732,0.72961607,118080.0,118070.0,0.002]
[1752214691886,0.72961607,118080.0,118070.0,0.006]
[1752214692423,0.21230175,118080.0,118070.0,0.002]
[1752214692608,0.002,118080.0,118070.0,0.002]
[1752214692807,0.17034,118080.0,118070.0,0.002]
[1752214693021,0.17034,118080.0,118050.0,0.09895699]
[1752214693022,0.13788,118080.0,118050.0,0.13095699]
[1752214693379,0.13788,118080.0,118050.0,0.41124516]
[1752214693380,0.13988,118080.0,118050.0,0.41124516]
[1752214693582,0.13988,118080.0,118050.0,0.40912742]
[1752214693926,0.13788,118080.0,118050.0,0.40912742]
[1752214694152,0.13788,118080.0,118050.0,0.41012742]
[1752214694880,0.13788,118080.0,118050.0,0.25916306]
[1752214695730,0.13588,118080.0,118050.0,0.25916306]
[1752214696063,0.13588,118080.0,118050.0,0.26116306]
[1752214696560,0.13588,118080.0,118050.0,0.41212742]
[1752214696762,0.50394698,118090.0,118050.0,0.41212742]
[1752214696922,0.13564,118080.0,118060.0,0.00211756]
[1752214697110,0.67108698,118090.0,118060.0,0.13564]
[1752214697315,0.67108698,118090.0,118060.0,0.18612317]
[1752214698214,0.19964,118090.0,118060.0,0.18612317]
[1752214698412,0.67108698,118090.0,118060.0,0.18612317]
[1752214698650,0.63858698,118090.0,118060.0,0.18612317]
[1752214698878,0.52714698,118080.0,118060.0,0.18612317]
[1752214699505,0.52714698,118080.0,118060.0,0.05048317]
[1752214700388,0.0557,118080.0,118060.0,0.05048317]
[1752214700807,0.0254,118080.0,118060.0,0.05048317]
[1752214701018,0.0254,118080.0,118060.0,0.05148317]
[1752214702056,0.0254,118080.0,118060.0,0.08248317]
[1752214702240,0.0254,118080.0,118060.0,0.11348317]
[1752214702677,0.0254,118080.0,118060.0,0.11560073]
[1752214702874,0.0254,118080.0,118060.0,0.11348317]
[1752214703383,0.0254,118080.0,118060.0,0.05148317]
[1752214704150,0.56004698,118080.0,118060.0,0.05148317]
[1752214705012,0.56004698,118080.0,118060.0,0.001]
[1752214705577,0.47144698,118070.0,118060.0,0.001]
[1752214705785,0.50294698,118070.0,118060.0,0.001]
[1752214706386,0.0315,118070.0,118060.0,0.001]
[1752214706836,0.0315,118070.0,118050.0,0.35550939]
[1752214706994,0.0315,118070.0,118050.0,0.39726033]
[1752214707195,0.03124874,118070.0,118050.0,0.39726033]
[1752214707993,0.001,118070.0,118050.0,0.39726033]
[1752214708409,0.001,118070.0,118050.0,0.42966033]
[1752214708849,0.19226,118080.0,118050.0,0.42966033]
[1752214709024,0.19326,118080.0,118050.0,0.46076033]
[1752214709366,0.19218,118080.0,118050.0,0.46076033]
[1752214709543,0.19218,118080.0,118050.0,0.46176033]
[1752214709883,0.19218,118080.0,118050.0,0.42836033]
[1752214710230,0.19218,118080.0,118050.0,0.39726033]
[1752214710454,0.22348,118080.0,118050.0,0.39726033]
[1752214710656,0.19808,118080.0,118050.0,0.39726033]
[1752214710857,0.025402,118070.0,118050.0,0.39726033]
[1752214712290,0.025402,118070.0,118050.0,0.39826033]
[1752214713303,0.66952698,118080.0,118050.0,0.39826033]
[1752214714132,0.025402,118060.0,118050.0,0.39826033]
[1752214715183,0.025402,118060.0,118050.0,0.39726033]
[1752214715381,0.025402,118060.0,118050.0,0.39826033]
[1752214715586,0.025402,118060.0,118050.0,0.26210033]
[1752214715999,0.025402,118060.0,118050.0,0.26310033]
[1752214717128,0.04482891,118060.0,118050.0,0.1937153]
[1752214717745,0.04482891,118060.0,118050.0,0.2248153]
[1752214718097,0.04482891,118060.0,118050.0,0.1937153]
[1752214718852,0.04482891,118060.0,118050.0,0.04275094]
[1752214720139,0.04482891,118060.0,118050.0,0.001]
[1752214720350,0.07642891,118060.0,118050.0,0.13608]
[1752214720552,0.10732891,118060.0,118050.0,0.001]
[1752214721357,0.04482891,118060.0,118040.0,0.13512]
[1752214721573,0.04539891,118060.0,118040.0,0.16704844]
[1752214721920,0.04639891,118060.0,118040.0,0.16704844]
[1752214722331,0.04539891,118060.0,118040.0,0.16704844]
[1752214722524,0.04439891,118060.0,118040.0,0.16704844]
[1752214722850,0.04439891,118060.0,118040.0,0.16804844]
[1752214723055,0.07709891,118060.0,118040.0,0.16804844]
[1752214723282,0.05212691,118060.0,118040.0,0.16804844]
[1752214723694,0.025405,118050.0,118040.0,0.16804844]
[1752214724539,0.025405,118050.0,118040.0,0.16696844]
[1752214724720,0.025405,118050.0,118040.0,0.13604]
[1752214725801,0.058305,118050.0,118040.0,0.13604]
[1752214726013,0.058305,118050.0,118040.0,0.001]
[1752214726626,0.56145198,118050.0,118040.0,0.001]
[1752214727062,0.79646276,118050.0,118040.0,0.001]
[1752214728113,0.79746276,118050.0,118040.0,0.001]
[1752214729609,0.19097578,118050.0,118040.0,0.001]
[1752214729810,0.026405,118050.0,118040.0,0.13604]
[1752214730018,0.026405,118050.0,118040.0,0.88835233]
[1752214730227,0.001,118050.0,118040.0,0.41378743]
[1752214730428,0.001,118050.0,118040.0,0.41191901]
[1752214731633,0.002,118050.0,118040.0,0.41191901]
[1752214732998,0.001,118050.0,118040.0,0.41191901]
[1752214733151,0.01942691,118060.0,118040.0,0.41451901]
[1752214733498,0.025402,118070.0,118040.0,0.34666202]
[1752214734462,0.024262,118070.0,118040.0,0.34666202]
[1752214734661,0.024262,118070.0,118040.0,0.34566202]
[1752214734951,0.024262,118070.0,118040.0,0.34666202]
[1752214735328,0.024262,118070.0,118050.0,0.0632]
[1752214735504,0.024262,118070.0,118060.0,0.13504]
[1752214735712,0.0316,118090.0,118060.0,0.19874]
[1752214735878,0.0254,118080.0,118060.0,0.19874]
[1752214736074,0.04221813,118080.0,118060.0,0.19874]
[1752214736905,0.42798799,118100.0,118070.0,0.06501738]
[1752214736906,0.08798799,118100.0,118070.0,0.06501738]
[1752214737131,0.025398,118090.0,118080.0,0.13504]
[1752214737742,0.028398,118090.0,118080.0,0.13504]
[1752214737937,0.025398,118090.0,118070.0,0.09144873]
[1752214738168,0.025398,118090.0,118080.0,0.13504]
[1752214738384,0.04266866,118090.0,118080.0,0.15768887]
[1752214738564,0.04366866,118090.0,118080.0,0.15768887]
[1752214739655,0.01827066,118090.0,118080.0,0.3053188]
[1752214739832,0.01927066,118090.0,118080.0,0.3053188]
[1752214741225,0.01927066,118090.0,118080.0,0.2431188]
[1752214743519,0.01927066,118090.0,118080.0,0.2430788]
[1752214744771,0.01927066,118090.0,118080.0,0.2760788]
[1752214744968,0.01927066,118090.0,118080.0,0.1410788]
[1752214745176,0.01927066,118090.0,118080.0,0.2430788]
[1752214745373,0.01927066,118090.0,118080.0,0.02264887]
[1752214745582,0.55221764,118090.0,118080.0,0.135]
[1752214746188,0.55511764,118090.0,118050.0,0.24646316]
[1752214746381,0.55511764,118090.0,118060.0,0.135]
[1752214746768,0.08367066,118090.0,118060.0,0.28828692]
[1752214747035,0.01827066,118090.0,118070.0,0.25400731]
[1752214747168,0.01827066,118090.0,118070.0,0.34375044]
[1752214747815,0.01827066,118090.0,118080.0,0.0021172]
[1752214748064,0.01727066,118090.0,118080.0,0.0021172]
[1752214748468,0.025395,118100.0,118080.0,0.0021172]
[1752214748696,0.025395,118100.0,118090.0,0.13624]
[1752214748867,0.025395,118100.0,118090.0,0.15007572]
[1752214749103,0.057995,118100.0,118090.0,0.15007572]
[1752214749678,0.56204198,118100.0,118090.0,0.15007572]
[1752214749892,0.56204198,118100.0,118090.0,0.14999572]
[1752214750087,0.57865935,118100.0,118090.0,0.01383572]
[1752214750301,0.0306,118090.0,118060.0,0.0615]
[1752214750496,0.53314698,118080.0,118070.0,0.13612]
[1752214750746,0.0617,118080.0,118050.0,0.4024]
[1752214750947,0.50344698,118090.0,118060.0,0.13612]
[1752214751088,0.53604698,118090.0,118060.0,0.13612]
[1752214751286,0.53604698,118090.0,118060.0,0.28276876]
[1752214751487,0.53604698,118090.0,118060.0,0.34826876]
[1752214751692,0.025399,118080.0,118060.0,0.25317377]
[1752214752192,0.025399,118080.0,118060.0,0.22237377]
[1752214752391,0.025399,118080.0,118060.0,0.22337377]
[1752214752791,0.025399,118080.0,118060.0,0.22137377]
[1752214752996,0.025399,118080.0,118060.0,0.22037377]
[1752214753192,0.025399,118080.0,118060.0,0.26177758]
[1752214753806,0.025399,118080.0,118060.0,0.26077758]
[1752214754248,0.025399,118080.0,118070.0,0.13592]
[1752214754663,0.53604698,118090.0,118070.0,0.13592]
[1752214755446,0.56144598,118090.0,118070.0,0.13592]
[1752214755787,0.001,118080.0,118070.0,0.16209537]
[1752214756124,0.52984598,118090.0,118070.0,0.16209537]
[1752214756331,0.058399,118090.0,118070.0,0.16209537]
[1752214756538,0.027399,118090.0,118070.0,0.16421275]
[1752214756958,0.027399,118090.0,118070.0,0.24964268]
[1752214757140,0.027399,118090.0,118070.0,0.2475253]
[1752214757572,0.026399,118090.0,118070.0,0.2475253]
[1752214757950,0.001,118080.0,118070.0,0.2475253]
[1752214758173,0.056799,118090.0,118070.0,0.2475253]
[1752214758374,0.52824598,118090.0,118070.0,0.2475253]
[1752214758573,0.52924598,118090.0,118070.0,0.2475253]
[1752214758779,0.055799,118090.0,118080.0,0.13584]
[1752214758935,0.055799,118090.0,118080.0,0.16058453]
[1752214759140,0.49684598,118090.0,118080.0,0.16058453]
[1752214759885,0.49884598,118090.0,118080.0,0.16058453]
[1752214760957,0.49984598,118090.0,118080.0,0.16058453]
[1752214761162,0.49884598,118090.0,118080.0,0.16058453]
[1752214761561,0.50184598,118090.0,118080.0,0.16058453]
[1752214762032,0.56624598,118090.0,118080.0,0.02474453]
[1752214762344,0.56624598,118090.0,118080.0,0.13572]
[1752214762922,0.56624598,118090.0,118070.0,0.02617537]
[1752214763185,0.47144698,118080.0,118070.0,0.02617537]
[1752214763390,0.50364698,118080.0,118070.0,0.16177537]
[1752214763600,0.0322,118080.0,118070.0,0.16177537]
[1752214763800,0.50364698,118080.0,118070.0,0.16177537]
[1752214764121,0.47144698,118080.0,118070.0,0.16177537]
[1752214764323,0.56164598,118090.0,118070.0,0.16177537]
[1752214764753,0.56264598,118090.0,118070.0,0.16177537]
[1752214765584,0.001,118080.0,118070.0,0.16177537]
[1752214765778,0.56364506,118090.0,118070.0,0.16177537]
[1752214765978,0.47144698,118080.0,118070.0,0.16177537]
[1752214766213,0.50234698,118080.0,118070.0,0.16177537]
[1752214766385,0.53284698,118080.0,118070.0,0.02617537]
[1752214766584,0.53284698,118080.0,118060.0,0.1354]
[1752214766801,0.47144698,118070.0,118060.0,0.1354]
[1752214767172,0.49684798,118070.0,118060.0,0.1354]
[1752214767718,0.49684798,118070.0,118050.0,0.15096436]
[1752214768037,0.56254798,118070.0,118060.0,0.13532]
[1752214768312,0.56254798,118070.0,118060.0,0.17249143]
[1752214768535,0.56254798,118070.0,118060.0,0.03717143]
[1752214768695,0.091101,118070.0,118060.0,0.03717143]
[1752214768893,0.025401,118070.0,118060.0,0.17245143]
[1752214770739,0.086301,118070.0,118060.0,0.03717143]
[1752214770942,0.086301,118070.0,118060.0,0.1352]
[1752214770943,0.55774798,118070.0,118060.0,0.1352]
[1752214771499,0.55774798,118070.0,118050.0,0.15096436]
[1752214771500,0.55874798,118070.0,118050.0,0.15096436]
[1752214771627,0.55974798,118070.0,118060.0,0.1352]
[1752214771827,0.088301,118070.0,118060.0,0.1352]
[1752214772066,0.55774798,118070.0,118060.0,0.1352]
[1752214772247,0.56274798,118070.0,118060.0,0.1352]
[1752214772890,0.56274798,118070.0,118060.0,0.16381644]
[1752214776055,0.56274798,118070.0,118060.0,0.1352]
[1752214776879,0.492745,118070.0,118060.0,0.1352]
[1752214778843,0.492745,118070.0,118040.0,0.28002135]
[1752214779097,0.401444,118060.0,118050.0,0.13504]
[1752214779446,0.426848,118060.0,118050.0,0.13504]
[1752214779646,0.426848,118060.0,118050.0,0.17654614]
[1752214780981,0.427848,118060.0,118050.0,0.17654614]
[1752214781124,0.428848,118060.0,118050.0,0.17654614]
[1752214783906,0.428848,118060.0,118050.0,0.04150614]
[1752214784116,0.428848,118060.0,118050.0,0.17654614]
[1752214784532,0.460048,118060.0,118050.0,0.17654614]
[1752214784885,0.460048,118060.0,118050.0,0.04150614]
[1752214785237,0.460048,118060.0,118050.0,0.13504]
[1752214785598,0.460048,118060.0,118040.0,0.15096436]
[1752214785837,0.401444,118050.0,118040.0,0.49096436]
[1752214786066,0.401444,118050.0,118040.0,0.62600436]
[1752214790697,0.41686012,118050.0,118040.0,0.62600436]
[1752214790870,0.41686012,118050.0,118040.0,0.15096436]
[1752214791070,0.48056012,118050.0,118040.0,0.13504]
[1752214791276,0.50596812,118050.0,118040.0,0.13504]
[1752214791609,0.53189894,118050.0,118030.0,0.15096436]
[1752214791807,0.401444,118040.0,118030.0,0.15096436]
[1752214792013,0.401444,118040.0,118030.0,0.1769518]
[1752214794740,0.401444,118040.0,118030.0,0.0419118]